Cogmind - Beta 13 @@@ ROGUE MODE // 2024.04.26 @ 15:10:22 Player: AntinDisguise Result: Self-destructed Performance ------------- Evolutions (1) 500 Regions Visited (3) 600 Robots Destroyed (20) 100 Value Destroyed (415) 415 Prototype IDs (1) 20 Alien Tech Used (0) 0 Bonus (117) 117 TOTAL SCORE: 1752 Bonus ------- Follower Combat Kills 117 Cogmind --------- Core Integrity 400/400 Matter 300/300 Energy 280/280 System Corruption 0% Temperature Cool (0) Movement Walking (190) Ox1 Location -9/Materials Parts ------- > --- POWER (1) -------- Heavy Ion Engine > --- PROPULSION (2) --- Aluminum Leg Carbon-fiber Leg > --- UTILITY (4) ------ Heat Sink Large Storage Unit > --- WEAPON (2) ------- Particle Cannon Particle Cannon > --- INVENTORY (15) --- Heavy Ion Engine Heavy Ion Engine Heavy Ion Engine Light Nuclear Core Light Angular Momentum Engine Light Treads Improved Heat Sink Improved Heat Sink Improved Terrain Scanner Battle Cannon Grenade Launcher Grenade Launcher Peak State ------------ > --- POWER ------------ Heavy Ion Engine > --- PROPULSION ------- Aluminum Leg Carbon-fiber Leg > --- UTILITY ---------- Heat Sink Large Storage Unit > --- WEAPON ----------- Particle Cannon Particle Cannon > --- INVENTORY -------- Heavy Ion Engine Heavy Ion Engine Heavy Ion Engine Light Nuclear Core Light Angular Momentum Engine Light Treads Improved Heat Sink Improved Heat Sink Improved Terrain Scanner Battle Cannon Grenade Launcher Grenade Launcher [Rating: 16] Favorites ----------- Power Heavy Ion Engine Engine Heavy Ion Engine Propulsion Light Treads Treads Light Treads Leg Carbon-fiber Leg Wheel Wheel Utility Large Storage Unit Device Heat Sink Storage Large Storage Unit Weapon Particle Cannon Energy Gun Medium Laser Energy Cannon Particle Cannon Ballistic Gun Light Assault Rifle Build | -11 -10 -10 -9 ------- Run | Yrd Mat Min Mat Slots Evolved 2 | . . . 2 Power . | . . . . Propulsion . | . . . . Utility 2 | . . . 2 Weapon . | . . . . Parts Attached 21 | 7 8 6 . Power 4 | 1 3 . . Engine 4 | 1 3 . . Core . | . . . . Reactor . | . . . . Propulsion 6 | 2 2 2 . Treads 2 | . 2 . . Leg 2 | . . 2 . Wheel 2 | 2 . . . Hover . | . . . . Flight . | . . . . Utility 4 | 2 . 2 . Device 2 | 1 . 1 . Storage 2 | 1 . 1 . Processor . | . . . . Hackware . | . . . . Protection . | . . . . Artifact . | . . . . Weapon 7 | 2 3 2 . Energy Gun 1 | 1 . . . Energy Cannon 5 | . 3 2 . Ballistic Gun 1 | 1 . . . Ballistic Cannon . | . . . . Launcher . | . . . . Special Weapon . | . . . . Impact Weapon . | . . . . Slashing Weapon . | . . . . Piercing Weapon . | . . . . Special Melee Weapon . | . . . . Unidentified Prototypes 1 | . 1 . . Parts Lost 4 | . . 4 . Power . | . . . . Propulsion 2 | . . 2 . Utility . | . . . . Weapon 2 | . . 2 . Highest Loss Streak 4 | . . 4 . To Critical Strikes . | . . . . Average Slot Usage (%) 97 | . 91 98 77 Engine 13 | . 13 14 11 Treads 21 | . 6 24 . Leg 2 | . . 2 22 Wheel 2 | . 16 . . Device 13 | . 14 14 11 Storage 13 | . 14 14 11 Energy Cannon 26 | . 19 27 22 Naked Turns . | . . . . Heaviest Build 37 | 12 22 37 37 Greatest Support 40 | 20 40 40 25 Greatest Overweight (x) 12 | . 2 12 1 Average Overweight (x) . | . . . 1 Largest Inventory Capacity 15 | 8 8 15 15 Average Capacity 13 | 7 8 14 15 Most Carried 12 | 5 8 12 12 Average Carried 8 | 2 6 9 12 Final Capacity 15 | 8 8 15 15 Final Carried 12 | 2 8 12 12 Class Distribution -------------------- 100% | Mutant Dominant Class ---------------- Mutant | -10/Materials Mutant | -10/Mines Mutant | -9/Materials Resources | -11 -10 -10 -9 ----------- Run | Yrd Mat Min Mat Matter Collected 545 | 265 90 190 . Remotely . | . . . . Salvage Created 728 | 107 159 462 . Parts 45 | 4 16 25 . Haulers Intercepted 1 | . 1 . . Recyclers Shooed 2 | 1 1 . . Parts Field Recycled . | . . . . Retrieved Matter . | . . . . Parts Self-Destructed . | . . . . Prevented . | . . . . Kills | -11 -10 -10 -9 ------- Run | Yrd Mat Min Mat Combat Hostiles Destroyed 17 | . 2 15 . Cannons 16 | . 2 14 . Classes Destroyed 7 | 2 3 2 . Builder 1 | . 1 . . Tunneler 2 | 2 . . . Hauler 1 | . 1 . . Recycler 2 | 1 1 . . Swarmer 5 | . 2 3 . Grunt 9 | . . 9 . Assembled 3 | . . 3 . Best Kill Streak 4 | 3 4 3 . Combat Bots Only 3 | . 2 3 . Max Kills in Single Turn 2 | 1 1 2 . Gunslinging . | . . . . Exploded . | . . . . Melee . | . . . . Uniques/NPCs Destroyed . | . . . . Combat | -11 -10 -10 -9 -------- Run | Yrd Mat Min Mat Hostile Shots Fired 79 | . 12 67 . Missed 25 | . 4 21 . Damage Taken 589 | . 68 521 . Core 143 | . 22 121 . Absorbed by Shields . | . . . . Core Remaining (%) 71 | 100 . 42 . Volleys Fired 74 | 5 13 56 . Largest 2 | 2 2 2 . Hottest 136 | 70 136 136 . Shots Fired 140 | 10 26 104 . Gun 10 | 10 . . . Cannon 130 | . 26 104 . Launcher . | . . . . Special . | . . . . Kinetic 5 | 5 . . . Thermal 135 | 5 26 104 . Explosive . | . . . . Electromagnetic . | . . . . Robot Hit Streak 6 | 3 6 4 . Robot Miss Streak 4 | 2 3 4 . Penetration Max . | . . . . Secondary Targets . | . . . . Shots Hit Robots 52 | 6 13 33 . Core Hits 26 | 6 5 15 . Critical Kills 1 | . . 1 . Critical Parts Destroyed . | . . . . Critical Strikes 2 | 1 . 1 . Burn 1 | 1 . . . Meltdown 1 | . . 1 . Melee Attacks . | . . . . Impact . | . . . . Slashing . | . . . . Piercing . | . . . . Sneak Attacks . | . . . . Combat Hostiles . | . . . . Follow-up Attacks . | . . . . Damage Inflicted 1129 | 66 305 758 . Guns 66 | 66 . . . Cannons 1063 | . 305 758 . Explosions . | . . . . Melee . | . . . . Ramming . | . . . . Kinetic 30 | 30 . . . Thermal 1099 | 36 305 758 . Explosive . | . . . . Electromagnetic . | . . . . Impact . | . . . . Slashing . | . . . . Piercing . | . . . . Highest Corruption . | . . . . Average Corruption . | . . . . Corruption Purged . | . . . . Corruption Blocked . | . . . . Overload Shots . | . . . . Overflow Damage 13 | . 12 1 . Projectiles 13 | . 12 1 . Explosions . | . . . . Melee . | . . . . Knockbacks . | . . . . Impact . | . . . . Kinetic . | . . . . Secondary . | . . . . Self-Inflicted Damage . | . . . . Shots . | . . . . Rammed . | . . . . Targets Rammed . | . . . . Kicked . | . . . . Crushed . | . . . . Highest Temperature 574 | 50 337 574 . Average Temperature 169 | 23 150 183 . Received Heat Transfer 210 | . 12 198 . Effects 15 | . . 15 . Shutdowns 3 | . . 3 . Energy Bleed 3 | . . 3 . Interference 1 | . . 1 . Matter Decay 3 | . . 3 . Damage (minor) 1 | . . 1 . Damage (major) 3 | . . 3 . Damage (core) 1 | . . 1 . Siege Activations . | . . . . Robots Corrupted . | . . . . Combat Hostiles . | . . . . Parts Fried . | . . . . Impact Corruptions . | . . . . Robots Melted 1 | . . 1 . Combat Hostiles 1 | . . 1 . Parts Melted 9 | 2 . 7 . Heat Transferred 2109 | 185 555 1369 . Parts Sabotaged . | . . . . Parts Stolen . | . . . . Parts Stripped . | . . . . Power Chain Reactions . | . . . . Alert | -11 -10 -10 -9 ------- Run | Yrd Mat Min Mat Peak Influence 202 | 15 102 202 50 Initial 39 | . 9 39 35 Average 81 | 4 50 93 36 Maximum Alert Level 1 | . . 1 . Low Security (%) 92 | 100 100 90 100 Level 1 7 | . . 9 . Level 2 . | . . . . Level 3 . | . . . . Level 4 . | . . . . Level 5 . | . . . . High Security . | . . . . Max Security . | . . . . Squads Dispatched 1 | . . 1 . Investigation . | . . . . Extermination . | . . . . Reinforcement . | . . . . Assault 1 | . . 1 . Garrison . | . . . . Intercept . | . . . . Searches Triggered . | . . . . Construction Impeded . | . . . . Haulers Reinforced . | . . . . Active Scanning Responses . | . . . . Cargo Convoy Interrupts . | . . . . Stealth | -11 -10 -10 -9 --------- Run | Yrd Mat Min Mat Distress Signals . | . . . . Communications Jammed . | . . . . Distress Signals . | . . . . Times Spotted 28 | . 5 20 3 Peak Tracking Total 4 | . 3 4 3 Tactical Retreats 1 | . . 1 . Traps | -11 -10 -10 -9 ------- Run | Yrd Mat Min Mat Traps Triggered 1 | . 1 . . Indirectly . | . . . . Trap Hack Attempts . | . . . . Triggered . | . . . . Disarmed . | . . . . Reprogrammed . | . . . . Reused . | . . . . Traps Extracted . | . . . . Installed . | . . . . Triggered . | . . . . Machines | -11 -10 -10 -9 ---------- Run | Yrd Mat Min Mat Machines Disabled 2 | . 2 . . Max in Single Turn 1 | . 1 . . Machines Repaired . | . . . . Machines Dismantled . | . . . . Machines Sabotaged . | . . . . Overloaded Fab Kills . | . . . . Hacking | -11 -10 -10 -9 --------- Run | Yrd Mat Min Mat Machines Accessed 3 | . 2 1 . Terminals 3 | . 2 1 . Fabricators . | . . . . Repair Stations . | . . . . Recycling Units . | . . . . Scanalyzers . | . . . . Garrison Access . | . . . . Total Hacks 3 | . 2 1 . Successful 3 | . 2 1 . Failed . | . . . . Catastrophic . | . . . . Database Lockouts . | . . . . Manual . | . . . . Terminals 3 | . 2 1 . Fabricators . | . . . . Repair Stations . | . . . . Recycling Units . | . . . . Scanalyzers . | . . . . Garrison Access . | . . . . Terminal Hacks 3 | . 2 1 . Locate Traps 1 | . 1 . . Zone Layout 2 | . 1 1 . Fabricator Hacks . | . . . . Repair Station Hacks . | . . . . Recycling Unit Hacks . | . . . . Scanalyzer . | . . . . Garrison Access Hacks . | . . . . Unauthorized Hacks . | . . . . Terminals . | . . . . Fabricators . | . . . . Repair Stations . | . . . . Recycling Units . | . . . . Scanalyzers . | . . . . Garrison Access . | . . . . Data Cores Recovered . | . . . . Used . | . . . . Hacking Detections 1 | . 1 . . Full Trace Events . | . . . . Feedback Events . | . . . . Feedback Blocked . | . . . . Robot Schematics Acquired . | . . . . Robots Built . | . . . . Authchips . | . . . . Time . | . . . . Total Robot Build Rating . | . . . . Part Schematics Acquired . | . . . . Parts Built . | . . . . Authchips . | . . . . Time . | . . . . Total Part Build Rating . | . . . . Parts Repaired . | . . . . Time . | . . . . Parts Recycled . | . . . . Recycled Matter . | . . . . Retrieved Matter . | . . . . Retrieved Components . | . . . . Parts Scanalyzed . | . . . . Part Schematics Acquired . | . . . . Parts Damaged . | . . . . Bothacking | -11 -10 -10 -9 ------------ Run | Yrd Mat Min Mat Used RIF Installer . | . . . . Robots Hacked . | . . . . Non-combat . | . . . . Combat . | . . . . Robot Hacks Applied . | . . . . Relay Couplers Released . | . . . . Fabnet Peak Effective % . | . . . . Robots Rewired . | . . . . Allies Hacked . | . . . . Hacks Repelled . | . . . . Allies | -11 -10 -10 -9 -------- Run | Yrd Mat Min Mat Total Allies 3 | . . 3 . Largest Group 2 | . . 2 . Highest-Rated Group 38 | . . 38 . Highest-Rated Ally 31 | . . 31 . Total Orders . | . . . . Ally Attacks 20 | . . 20 . Total Damage 315 | . . 315 . Kills 5 | . . 5 . Allies Corrupted . | . . . . Allies Melted . | . . . . Intel | -11 -10 -10 -9 ------- Run | Yrd Mat Min Mat Robot Analysis Total . | . . . . Derelict Logs Recovered 1 | . . 1 . Drone Launches . | . . . . Drone Recoveries . | . . . . Exploration | -11 -10 -10 -9 ------------- Run | Yrd Mat Min Mat Turns Passed 1463 | 86 217 1142 18 Spaces Moved 707 | 67 114 517 9 Core 21 | 19 . 2 . Treads 492 | . 22 470 . Legs 54 | . . 45 9 Wheels 140 | 48 92 . . Hover . | . . . . Flight . | . . . . Fastest Speed 50 | 50 80 160 190 Average Speed 146 | 71 103 164 190 Slowest Speed 650 | 80 160 650 190 Overloaded Moves . | . . . . Propulsion Burnouts . | . . . . Robots Hopped . | . . . . Cave-ins Triggered . | . . . . Exploration Rate (%) 25 | 4 23 73 2 Regions Visited 3 Branch Regions 1 Pre-discovered Areas . | . . . . Known Exits Taken . | . . . . Unknown Exits Taken 3 | 1 1 1 . Scrap Searched 1 | . . 1 . Spaces Dug 10 | . . 10 . Terrain Destroyed 11 | . . 11 . Melee . | . . . . Projectile 11 | . . 11 . AOE . | . . . . Terrain Rammed . | . . . . Walls Destroyed . | . . . . Machines Disabled . | . . . . Actions | -11 -10 -10 -9 --------- Run | Yrd Mat Min Mat Total 995 | 95 187 704 9 Wait 161 | 8 37 116 . Move 704 | 66 113 516 9 Hop . | . . . . Pick Up 29 | 9 12 8 . Fast Attach 1 | . 1 . . Attach 17 | 7 5 5 . Detach 1 | . . 1 . Swap 3 | . 2 1 . Drop 5 | . 4 1 . Fire 74 | 5 13 56 . Melee . | . . . . Ram . | . . . . Kick . | . . . . Crush . | . . . . Escape Stasis . | . . . . Rewire . | . . . . Trap . | . . . . Miscellaneous . | . . . . Route ------- -11/Scrapyard -10/Materials -10/Mines -9/Materials History --------- Turn | Location | Event 8 | -11/Scrapyard | Discovered new exit (range 14) 87 | -11/Scrapyard | Entered Materials 205 | -10/Materials | Discovered new exit (range 16) 304 | -10/Materials | Entered Mines 312 | -10/Mines | Build established: Mutant 682 | -10/Mines | Found a hidden stash of uninstalled traps 995 | -10/Mines | Excavation squad dispatched 995 | -10/Mines | A large section of the Mines collapsed 1147 | -10/Mines | Learned Materials stockpile data 1164 | -10/Mines | A weapon hastily lodged in a ceiling crevice suddenly fell to the ground 1181 | -10/Mines | Discovered new exit (range 9) 1249 | -10/Mines | Met a Derelict testing a Signal Generator 1332 | -10/Mines | Core integrity fell below 50% 1364 | -10/Mines | Lost 4 parts (2n2w) 1446 | -10/Mines | Entered Materials 1446 | -9/Materials | Evolved 2 slots: Utility x2 1464 | -9/Materials | Self-destructed Last Messages --------------- Particle Cannon destroyed. Heat Sink melted. G-34 Mercenary destroyed. Lgt. Treads destroyed. Overheating: System interference. Particle Cannon temporarily disabled. Particle Cannon destroyed. Aluminum Leg melted. Heat Sink melted. G-34 Mercenary destroyed. Acquired Lgt. Angular Momentum Engine. Acquired 20 matter. Acquired Carbon-fiber Leg. Acquired Aluminum Leg. Acquired 20 matter. Acquired Imp. Heat Sink. PARAMETERS=UTILITY+2 LOCATION=UNKNOWN GOAL=ESCAPE Loading Materials stockpile data (x4)... Map ----- +----------------------------------------------------+ | ????????????????????????????????? | | ????????????????????????????????? | | ????????????????????????????????? | | ????????????????????????????????? | | ????????????????????????????????? | | ????????????????????????????????? | | ????????????????????????????????? | | ????????????????????????????????? | | ????????????????????????????????? | | ????????????????????????????????? | | ????????????????????????????????? | | ????????????????????????????????? | | ????????????????????????????????? | | ????????????????????????????????? | | ????????????????????????????????? | | ????????????????????????????????? | | ?????????????????????????#####??? | | ?????????????????????????# #??? | | ?????????????????????????# #??? | | ?????????????????????????# #??? | | ?????????????????????????# #??? | | ?????????????????????????# #??? | | ?????????????????????????# #??? | | ?????????????????????????# #??? | | ?????????????????######### #??? | | ?????????? w @ #??? | | ?????????????????######### #??? | | ?????????????????????????# #??? | | ?????????????????????????# #??? | | ?????????????????????????# #??? | | ?????????????????????????# #??? | | ?????????????????????????# #??? | | ?????????????????????????# #??? | | ?????????????????????????# #??? | | ?????????????????????????# #??? | | ?????????????????????????# #??? | | ?????????????????????????# #??? | | ?????????????????????????? #??? | | ?????????????????????????? #??? | | ?????????????????????????? #??? | | ?????????????????????????? #??? | | ?????????????????????????? ???? | | ????????????????????????????????? | | ????????????????????????????????? | | ????????????????????????????????? | | ????????????????????????????????? | | ????????????????????????????????? | | ????????????????????????????????? | | ????????????????????????????????? | | ????????????????????????????????? | +----------------------------------------------------+ Best States ------------- Heat Dissipation 38 Energy Generation 14 Energy Capacity 280 Matter Stores 300 Matter Capacity 300 Sight Range 16 Terrain Scan Range 16 Terrain Scan Density 10 Evasion (%) 50 Recoil Reduction 2 Item Schematics ----------------- None Robot Schematics ------------------ None Fabricated ------------ Nothing Alien Tech Used ----------------- None Achievements -------------- None Challenges ------------ None Game ------ Seed ReflectiveScatterShotgun Manual? 0 Play Time 00:11:48 Cumulative 26.8 hours Start 2024.04.26 @ 00:54:04 End 2024.04.26 @ 15:10:22 Sessions 3 Manual Loads 0 Difficulty Rogue Special Mode None Game No. 76 Rogue 74 Adventurer 2 Explorer 0 Win Type - Total 0 Types 0/0/0/0/0/0/0/0/0 Lore% 22 Gallery% 30 Achievement% 23 Wizard Run 0 Options --------- Layout 1 ASCII 0 Keyboard 0 Movement Mouse Keybinds 0 Fullscreen 1 Font 16/SmallcapsGlow Map View 55x38 Zoom Use 94% Tactical HUD 0 Map Filters NONE Filters NONE Steam 1 RUN: f75ac17b-ac9b-4dad-8c1e-db66bac7515e